[Event "*** SCC Grand Prix: Titled Tuesday Blitz"]
[Site "Chess.com"]
[Date "2020.06.09"]
[Round "8"]
[White "ENEASZ"]
[Black "Flawless_Fighter"]
[Result "0-1"]
[WhiteElo "2464"]
[BlackElo "2613"]
[TimeControl "180+1"]
[EndTime "10:34:58 PDT"]
[Termination "Flawless_Fighter won by resignation"]

1. e4 {[%clk 0:03:00.9]} 1... c6 {[%clk 0:03:00.1]} 2. d4 {[%clk 0:03:00.1]}
2... d5 {[%clk 0:03:01]} 3. exd5 {[%clk 0:03:01]} 3... cxd5 {[%clk 0:03:01.9]}
4. Bd3 {[%clk 0:03:00.9]} 4... Nc6 {[%clk 0:03:01.9]} 5. c3 {[%clk 0:03:01.4]}
5... Nf6 {[%clk 0:03:02.4]} 6. Bf4 {[%clk 0:03:00.1]} 6... Bg4 {[%clk
0:03:02.8]} 7. Nf3 {[%clk 0:03:00.1]} 7... e6 {[%clk 0:03:01.2]} 8. Qb3 {[%clk
0:02:56.4]} 8... Qc8 {[%clk 0:02:43.1]} 9. Ne5 {[%clk 0:02:52.7]} 9... Nxe5
{[%clk 0:02:35]} 10. Bxe5 {[%clk 0:02:46]} 10... Be7 {[%clk 0:02:33.2]} 11. Bb5+
{[%clk 0:02:31.5]} 11... Kf8 {[%clk 0:02:30.4]} 12. Nd2 {[%clk 0:02:29.1]} 12...
a6 {[%clk 0:02:30.1]} 13. Bd3 {[%clk 0:02:28.9]} 13... Nd7 {[%clk 0:02:26.8]}
14. Bg3 {[%clk 0:02:28.3]} 14... g6 {[%clk 0:02:21.2]} 15. O-O {[%clk
0:02:19.1]} 15... Bf5 {[%clk 0:02:19.8]} 16. Bxf5 {[%clk 0:02:02.8]} 16... gxf5
{[%clk 0:02:20.7]} 17. Nf3 {[%clk 0:02:03.5]} 17... h5 {[%clk 0:02:19]} 18. h4
{[%clk 0:01:59.1]} 18... Rg8 {[%clk 0:02:12.7]} 19. Bf4 {[%clk 0:01:51.1]} 19...
Rg4 {[%clk 0:02:08.7]} 20. g3 {[%clk 0:01:48.5]} 20... Nf6 {[%clk 0:02:01.6]}
21. Bh6+ {[%clk 0:01:45.1]} 21... Kg8 {[%clk 0:01:45.6]} 22. Ne5 {[%clk
0:01:46]} 22... Re4 {[%clk 0:01:45.4]} 23. Bg5 {[%clk 0:01:20.1]} 23... Qc7
{[%clk 0:01:31.4]} 24. Qd1 {[%clk 0:01:11.1]} 24... Ng4 {[%clk 0:01:16.1]} 25.
Bxe7 {[%clk 0:00:50.1]} 25... Qxe7 {[%clk 0:01:11.5]} 26. Nd3 {[%clk 0:00:48.5]}
26... f4 {[%clk 0:01:01.6]} 27. Qf3 {[%clk 0:00:40.9]} 27... fxg3 {[%clk
0:00:51.1]} 28. Qxg3 {[%clk 0:00:34]} 28... Kh8 {[%clk 0:00:39.5]} 29. Rae1
{[%clk 0:00:33.5]} 29... Rg8 {[%clk 0:00:37.3]} 30. Rxe4 {[%clk 0:00:12.3]}
30... dxe4 {[%clk 0:00:35.2]} 31. Qf4 {[%clk 0:00:12.6]} 0-1

[Event "*** SCC Grand Prix: Titled Tuesday Blitz"]
[Site "Chess.com"]
[Date "2020.06.09"]
[Round "8"]
[White "2007checkmate"]
[Black "ZarinaShafigullina"]
[Result "1-0"]
[WhiteElo "2408"]
[BlackElo "2242"]
[TimeControl "180+1"]
[EndTime "10:35:00 PDT"]
[Termination "2007checkmate won by resignation"]

1. Nc3 {[%clk 0:03:00.9]} 1... e5 {[%clk 0:02:57.6]} 2. Nf3 {[%clk 0:03:00.4]}
2... Nc6 {[%clk 0:02:56.9]} 3. d4 {[%clk 0:03:00.9]} 3... exd4 {[%clk
0:02:49.5]} 4. Nxd4 {[%clk 0:03:01.8]} 4... Nf6 {[%clk 0:02:50.2]} 5. g3 {[%clk
0:03:01.3]} 5... Bc5 {[%clk 0:02:47.3]} 6. Nxc6 {[%clk 0:03:00.4]} 6... dxc6
{[%clk 0:02:43.2]} 7. Qxd8+ {[%clk 0:03:01.3]} 7... Kxd8 {[%clk 0:02:43.4]} 8.
Bg5 {[%clk 0:03:01.6]} 8... Be7 {[%clk 0:02:42.4]} 9. O-O-O+ {[%clk 0:03:00.4]}
9... Ke8 {[%clk 0:02:41.1]} 10. Bg2 {[%clk 0:02:59.5]} 10... Be6 {[%clk
0:02:41.3]} 11. e4 {[%clk 0:02:58]} 11... Nd7 {[%clk 0:02:39.5]} 12. Bxe7 {[%clk
0:02:57.4]} 12... Kxe7 {[%clk 0:02:39.6]} 13. f4 {[%clk 0:02:57.5]} 13... g6
{[%clk 0:02:32.1]} 14. Rhe1 {[%clk 0:02:54.7]} 14... Bg4 {[%clk 0:02:19.4]} 15.
Rd2 {[%clk 0:02:52.9]} 15... Nb6 {[%clk 0:02:18.8]} 16. h3 {[%clk 0:02:52.1]}
16... Be6 {[%clk 0:02:13.8]} 17. b3 {[%clk 0:02:46.6]} 17... Rad8 {[%clk
0:02:13.4]} 18. Red1 {[%clk 0:02:43.1]} 18... Rxd2 {[%clk 0:02:13.1]} 19. Rxd2
{[%clk 0:02:44]} 19... Rd8 {[%clk 0:02:13.5]} 20. a4 {[%clk 0:02:38.1]} 20... a5
{[%clk 0:02:12.3]} 21. Rxd8 {[%clk 0:02:27.6]} 21... Kxd8 {[%clk 0:02:12]} 22.
Kd2 {[%clk 0:02:28.5]} 22... h5 {[%clk 0:01:52.2]} 23. Ke3 {[%clk 0:02:24.6]}
23... Ke7 {[%clk 0:01:51.9]} 24. Kd4 {[%clk 0:02:23.8]} 24... Nd7 {[%clk
0:01:47.4]} 25. e5 {[%clk 0:02:22.8]} 25... Nb6 {[%clk 0:01:25.2]} 26. Ne4
{[%clk 0:02:04.6]} 26... Bc8 {[%clk 0:01:14.9]} 27. Nf2 {[%clk 0:01:54.3]} 27...
Be6 {[%clk 0:01:00.4]} 28. c4 {[%clk 0:01:46.4]} 28... Bf5 {[%clk 0:01:00.4]}
29. Be4 {[%clk 0:01:42.1]} 29... Bxe4 {[%clk 0:00:50.3]} 30. Nxe4 {[%clk
0:01:43]} 30... Nd7 {[%clk 0:00:50.9]} 31. Nc5 {[%clk 0:01:34.3]} 31... Nxc5
{[%clk 0:00:48.7]} 32. Kxc5 {[%clk 0:01:35.2]} 32... Ke6 {[%clk 0:00:48.8]} 33.
Kd4 {[%clk 0:01:29.8]} 33... Kf5 {[%clk 0:00:46.9]} 34. Ke3 {[%clk 0:01:29.8]}
34... g5 {[%clk 0:00:39.3]} 35. Kf3 {[%clk 0:01:29.1]} 35... h4 {[%clk
0:00:25.9]} 36. g4+ {[%clk 0:01:13.5]} 36... Ke6 {[%clk 0:00:25.3]} 37. Ke4
{[%clk 0:01:14.1]} 37... gxf4 {[%clk 0:00:21.7]} 38. Kxf4 {[%clk 0:01:15]} 38...
b5 {[%clk 0:00:14.6]} 39. axb5 {[%clk 0:01:07.4]} 39... cxb5 {[%clk 0:00:14.6]}
40. cxb5 {[%clk 0:01:08.3]} 40... Kd5 {[%clk 0:00:14.1]} 41. Kf5 {[%clk
0:01:08.7]} 41... Kc5 {[%clk 0:00:14.4]} 42. Kf6 {[%clk 0:01:09.1]} 42... Kxb5
{[%clk 0:00:14.3]} 43. Kxf7 {[%clk 0:01:09.5]} 43... Kb4 {[%clk 0:00:15]} 44. e6
{[%clk 0:01:10]} 44... Kxb3 {[%clk 0:00:15.6]} 45. e7 {[%clk 0:01:10.6]} 45...
a4 {[%clk 0:00:16.3]} 46. e8=Q {[%clk 0:01:10.7]} 46... a3 {[%clk 0:00:17.2]}
47. Qe5 {[%clk 0:01:08.7]} 47... c5 {[%clk 0:00:15.9]} 48. Qa1 {[%clk 0:01:09]}
48... c4 {[%clk 0:00:15.6]} 49. g5 {[%clk 0:01:09.4]} 49... c3 {[%clk 0:00:16]}
50. g6 {[%clk 0:01:09.9]} 50... c2 {[%clk 0:00:16.5]} 51. g7 {[%clk 0:01:10.4]}
1-0

[Event "*** SCC Grand Prix: Titled Tuesday Blitz"]
[Site "Chess.com"]
[Date "2020.06.09"]
[Round "8"]
[White "TERMINATOR_PC"]
[Black "joksijoksi"]
[Result "1-0"]
[WhiteElo "2478"]
[BlackElo "2354"]
[TimeControl "180+1"]
[EndTime "10:35:01 PDT"]
[Termination "TERMINATOR_PC won on time"]

1. e4 {[%clk 0:03:00.9]} 1... e6 {[%clk 0:02:57.5]} 2. d4 {[%clk 0:02:45]} 2...
d5 {[%clk 0:02:57.5]} 3. exd5 {[%clk 0:02:45.9]} 3... exd5 {[%clk 0:02:58.4]} 4.
Nc3 {[%clk 0:02:46.8]} 4... c6 {[%clk 0:02:55.2]} 5. Bd3 {[%clk 0:02:45.8]} 5...
Bd6 {[%clk 0:02:54.8]} 6. Nge2 {[%clk 0:02:45.5]} 6... Ne7 {[%clk 0:02:55.4]} 7.
Bf4 {[%clk 0:02:46]} 7... Bf5 {[%clk 0:02:55.6]} 8. O-O {[%clk 0:02:45.1]} 8...
O-O {[%clk 0:02:55.8]} 9. Bxd6 {[%clk 0:02:42.9]} 9... Qxd6 {[%clk 0:02:56.7]}
10. Ng3 {[%clk 0:02:43.8]} 10... Bg6 {[%clk 0:02:48.5]} 11. f4 {[%clk
0:02:25.1]} 11... Bxd3 {[%clk 0:02:20.4]} 12. Qxd3 {[%clk 0:02:26]} 12... Nd7
{[%clk 0:02:18.1]} 13. Rae1 {[%clk 0:02:19.5]} 13... Rae8 {[%clk 0:02:14.2]} 14.
Nd1 {[%clk 0:02:16.4]} 14... f5 {[%clk 0:02:02.1]} 15. Rxe7 {[%clk 0:02:04.9]}
15... Qxe7 {[%clk 0:01:55.6]} 16. Nxf5 {[%clk 0:02:05.1]} 16... Qe4 {[%clk
0:01:43.4]} 17. Ng3 {[%clk 0:02:04.6]} 17... Qxd3 {[%clk 0:01:39.2]} 18. cxd3
{[%clk 0:02:05.5]} 18... Rf7 {[%clk 0:01:30.4]} 19. h3 {[%clk 0:02:02.5]} 19...
Ref8 {[%clk 0:01:28]} 20. Ne2 {[%clk 0:02:00.9]} 20... g5 {[%clk 0:01:25.6]} 21.
g3 {[%clk 0:01:56.5]} 21... gxf4 {[%clk 0:01:22.1]} 22. Nxf4 {[%clk 0:01:57.4]}
22... Nf6 {[%clk 0:01:05.1]} 23. Ne3 {[%clk 0:01:52.2]} 23... Re8 {[%clk
0:01:01]} 24. Nf5 {[%clk 0:01:51.3]} 24... Rfe7 {[%clk 0:00:27.2]} 25. Nxe7+
{[%clk 0:01:50]} 25... Rxe7 {[%clk 0:00:28.1]} 26. Kf2 {[%clk 0:01:48.6]} 26...
Nd7 {[%clk 0:00:24.2]} 27. g4 {[%clk 0:01:39.9]} 27... a5 {[%clk 0:00:13.4]} 28.
b3 {[%clk 0:01:31.5]} 28... Nb8 {[%clk 0:00:10.8]} 29. h4 {[%clk 0:01:29]} 29...
Na6 {[%clk 0:00:11]} 30. a3 {[%clk 0:01:26.9]} 30... Nc7 {[%clk 0:00:11]} 31. a4
{[%clk 0:01:23.2]} 31... Rf7 {[%clk 0:00:11.3]} 32. Kg3 {[%clk 0:01:23.3]} 32...
Ne6 {[%clk 0:00:09.5]} 33. g5 {[%clk 0:01:10.1]} 33... Nxd4 {[%clk 0:00:07.8]}
34. Re1 {[%clk 0:01:10.7]} 34... Nxb3 {[%clk 0:00:05.7]} 35. Nh5 {[%clk
0:01:04.1]} 35... Kf8 {[%clk 0:00:03.9]} 36. Nf6 {[%clk 0:01:03]} 36... Re7
{[%clk 0:00:03.1]} 37. Rf1 {[%clk 0:01:01.6]} 37... Kg7 {[%clk 0:00:01.6]} 38.
h5 {[%clk 0:01:02]} 38... Rf7 {[%clk 0:00:01.3]} 39. Kg4 {[%clk 0:00:58.6]} 1-0

[Event "*** SCC Grand Prix: Titled Tuesday Blitz"]
[Site "Chess.com"]
[Date "2020.06.09"]
[Round "8"]
[White "Ekka83"]
[Black "tamarozi99"]
[Result "1-0"]
[WhiteElo "2397"]
[BlackElo "2066"]
[TimeControl "180+1"]
[EndTime "10:35:03 PDT"]
[Termination "Ekka83 won by checkmate"]

1. Nf3 {[%clk 0:03:00.9]} 1... g6 {[%clk 0:02:58.6]} 2. b3 {[%clk 0:02:58.1]}
2... Bg7 {[%clk 0:02:58.4]} 3. Nc3 {[%clk 0:02:57.5]} 3... c5 {[%clk 0:02:57.5]}
4. Bb2 {[%clk 0:02:57.2]} 4... Nc6 {[%clk 0:02:57.1]} 5. g3 {[%clk 0:02:57]}
5... d5 {[%clk 0:02:57]} 6. Bg2 {[%clk 0:02:57.3]} 6... e5 {[%clk 0:02:56.7]} 7.
O-O {[%clk 0:02:56.5]} 7... Nf6 {[%clk 0:02:48.9]} 8. e3 {[%clk 0:02:54.9]} 8...
O-O {[%clk 0:02:43]} 9. Ne2 {[%clk 0:02:54.1]} 9... e4 {[%clk 0:02:28.8]} 10.
Ne1 {[%clk 0:02:53.8]} 10... Be6 {[%clk 0:02:24.9]} 11. d3 {[%clk 0:02:51.8]}
11... Qc8 {[%clk 0:02:18.1]} 12. Nf4 {[%clk 0:02:50.8]} 12... Bg4 {[%clk
0:02:13.2]} 13. Qc1 {[%clk 0:02:46.6]} 13... g5 {[%clk 0:02:00.7]} 14. Bxf6
{[%clk 0:02:45.6]} 14... gxf4 {[%clk 0:01:21.1]} 15. Bxg7 {[%clk 0:02:42.1]}
15... Kxg7 {[%clk 0:01:22]} 16. exf4 {[%clk 0:02:40.1]} 16... Be2 {[%clk
0:01:16.6]} 17. dxe4 {[%clk 0:02:40]} 17... Bxf1 {[%clk 0:01:16.6]} 18. Kxf1
{[%clk 0:02:39.6]} 18... dxe4 {[%clk 0:01:12.4]} 19. Bxe4 {[%clk 0:02:38.4]}
19... Qh3+ {[%clk 0:01:12.5]} 20. Kg1 {[%clk 0:02:37.3]} 20... Nd4 {[%clk
0:01:12.6]} 21. Qb2 {[%clk 0:02:25.8]} 21... f6 {[%clk 0:00:54.6]} 22. Bg2
{[%clk 0:02:22.4]} 22... Ne2+ {[%clk 0:00:49.8]} 23. Kh1 {[%clk 0:02:22.4]}
23... Qh6 {[%clk 0:00:45]} 24. Nf3 {[%clk 0:02:19.7]} 24... Rad8 {[%clk
0:00:39.4]} 25. c3 {[%clk 0:02:04]} 25... Rfe8 {[%clk 0:00:18.8]} 26. Re1 {[%clk
0:02:03]} 26... Nxf4 {[%clk 0:00:18.5]} 27. gxf4 {[%clk 0:01:54.3]} 27... Rxe1+
{[%clk 0:00:16]} 28. Nxe1 {[%clk 0:01:55.2]} 28... Qxf4 {[%clk 0:00:16.2]} 29.
Qe2 {[%clk 0:01:45]} 29... Rd2 {[%clk 0:00:15.2]} 30. Qe7+ {[%clk 0:01:41.5]}
30... Kh6 {[%clk 0:00:15.4]} 31. Qf8+ {[%clk 0:01:35.3]} 31... Kg5 {[%clk
0:00:15.6]} 32. Nf3+ {[%clk 0:01:31.5]} 32... Kf5 {[%clk 0:00:15.7]} 33. Qxc5+
{[%clk 0:01:27.2]} 33... Kg6 {[%clk 0:00:09.4]} 34. Nxd2 {[%clk 0:01:24.3]}
34... Qxd2 {[%clk 0:00:10.3]} 35. Be4+ {[%clk 0:01:22.7]} 35... Kg7 {[%clk
0:00:04]} 36. Qe7+ {[%clk 0:01:21.1]} 36... Kg8 {[%clk 0:00:02.1]} 37. Qxh7+
{[%clk 0:01:17.8]} 37... Kf8 {[%clk 0:00:02.1]} 38. Qh8+ {[%clk 0:01:18]} 38...
Ke7 {[%clk 0:00:01.9]} 39. Qg7+ {[%clk 0:01:17]} 39... Ke6 {[%clk 0:00:02.2]}
40. Kg2 {[%clk 0:01:07.4]} 40... Qf4 {[%clk 0:00:01.7]} 41. Qg8+ {[%clk
0:01:05.6]} 41... Ke5 {[%clk 0:00:01.9]} 42. Qd5# {[%clk 0:01:03.5]} 1-0

[Event "*** SCC Grand Prix: Titled Tuesday Blitz"]
[Site "Chess.com"]
[Date "2020.06.09"]
[Round "8"]
[White "DrBergerBerger"]
[Black "kingmonkey2006"]
[Result "1-0"]
[WhiteElo "2451"]
[BlackElo "2567"]
[TimeControl "180+1"]
[EndTime "10:35:04 PDT"]
[Termination "DrBergerBerger won by resignation"]

1. e4 {[%clk 0:03:00.9]} 1... c5 {[%clk 0:02:58.6]} 2. Nc3 {[%clk 0:02:59.8]}
2... d6 {[%clk 0:02:58.8]} 3. d4 {[%clk 0:02:56.4]} 3... cxd4 {[%clk 0:02:57.9]}
4. Qxd4 {[%clk 0:02:57.3]} 4... Nc6 {[%clk 0:02:57.7]} 5. Qd2 {[%clk 0:02:50.4]}
5... g6 {[%clk 0:02:47.2]} 6. b3 {[%clk 0:02:48.9]} 6... Bh6 {[%clk 0:02:47.4]}
7. f4 {[%clk 0:02:48.1]} 7... Nf6 {[%clk 0:02:47.5]} 8. Bb2 {[%clk 0:02:46.9]}
8... e5 {[%clk 0:02:35.8]} 9. Nge2 {[%clk 0:02:43]} 9... O-O {[%clk 0:02:13.6]}
10. O-O-O {[%clk 0:02:42.2]} 10... Nd4 {[%clk 0:02:11]} 11. g3 {[%clk
0:02:13.8]} 11... Bg4 {[%clk 0:01:59.5]} 12. Kb1 {[%clk 0:02:06.4]} 12... Bf3
{[%clk 0:01:29.1]} 13. Rg1 {[%clk 0:02:01.8]} 13... Nxe2 {[%clk 0:01:23.8]} 14.
Bxe2 {[%clk 0:01:58.7]} 14... Nxe4 {[%clk 0:01:22.7]} 15. Nxe4 {[%clk
0:01:28.1]} 15... Bxe4 {[%clk 0:01:23.2]} 16. Qe3 {[%clk 0:01:27.7]} 16... d5
{[%clk 0:00:51.1]} 17. Bxe5 {[%clk 0:01:20.7]} 17... Re8 {[%clk 0:00:51.5]} 18.
Qd4 {[%clk 0:01:11.2]} 18... Rc8 {[%clk 0:00:32.2]} 19. Bd3 {[%clk 0:01:09.7]}
19... Bxd3 {[%clk 0:00:20.9]} 20. Rxd3 {[%clk 0:01:00]} 20... Rc6 {[%clk
0:00:21.2]} 21. Qxd5 {[%clk 0:00:53.1]} 21... Qc8 {[%clk 0:00:21.6]} 22. Rc1
{[%clk 0:00:40.7]} 22... Bf8 {[%clk 0:00:21]} 23. Bb2 {[%clk 0:00:35.3]} 23...
Re2 {[%clk 0:00:20.2]} 24. Qd4 {[%clk 0:00:28.1]} 24... f6 {[%clk 0:00:19.5]}
25. Rc3 {[%clk 0:00:27.3]} 25... Bc5 {[%clk 0:00:15]} 26. Qc4+ {[%clk
0:00:26.7]} 26... Kg7 {[%clk 0:00:14.7]} 27. Qxe2 {[%clk 0:00:26.4]} 1-0

[Event "*** SCC Grand Prix: Titled Tuesday Blitz"]
[Site "Chess.com"]
[Date "2020.06.09"]
[Round "8"]
[White "Sam_ChessMood"]
[Black "Colchonero64"]
[Result "1-0"]
[WhiteElo "2843"]
[BlackElo "2982"]
[TimeControl "180+1"]
[EndTime "10:35:07 PDT"]
[Termination "Sam_ChessMood won by checkmate"]

1. e4 {[%clk 0:03:00.9]} 1... e6 {[%clk 0:02:59.6]} 2. d4 {[%clk 0:02:58.3]}
2... d5 {[%clk 0:03:00]} 3. Nc3 {[%clk 0:02:58.7]} 3... Nf6 {[%clk 0:03:00.2]}
4. e5 {[%clk 0:02:58.6]} 4... Nfd7 {[%clk 0:03:00]} 5. f4 {[%clk 0:02:58.9]}
5... c5 {[%clk 0:03:00.3]} 6. Nf3 {[%clk 0:02:59.3]} 6... Nc6 {[%clk 0:03:00.9]}
7. Be3 {[%clk 0:02:59]} 7... a6 {[%clk 0:03:00.7]} 8. Qd2 {[%clk 0:02:51.8]}
8... b5 {[%clk 0:03:00.3]} 9. Bd3 {[%clk 0:02:45]} 9... b4 {[%clk 0:02:55.8]}
10. Na4 {[%clk 0:02:44.7]} 10... c4 {[%clk 0:02:55.2]} 11. Be2 {[%clk 0:02:45]}
11... Nb6 {[%clk 0:02:55.5]} 12. Nc5 {[%clk 0:02:39.1]} 12... Nd7 {[%clk
0:02:54.6]} 13. Nxd7 {[%clk 0:02:25]} 13... Bxd7 {[%clk 0:02:53.7]} 14. O-O
{[%clk 0:02:24.7]} 14... Be7 {[%clk 0:02:52.4]} 15. b3 {[%clk 0:01:56.2]} 15...
c3 {[%clk 0:02:47.6]} 16. Qe1 {[%clk 0:01:53.6]} 16... a5 {[%clk 0:02:43.6]} 17.
Bd3 {[%clk 0:01:46.8]} 17... a4 {[%clk 0:02:42.8]} 18. Qg3 {[%clk 0:01:33]}
18... g6 {[%clk 0:02:40.9]} 19. Rae1 {[%clk 0:01:29.5]} 19... Qb6 {[%clk
0:02:34.3]} 20. Kh1 {[%clk 0:01:28.7]} 20... axb3 {[%clk 0:02:27.9]} 21. axb3
{[%clk 0:01:28.2]} 21... Ra2 {[%clk 0:02:27.5]} 22. Ng5 {[%clk 0:01:22.9]} 22...
Nd8 {[%clk 0:02:23.5]} 23. h4 {[%clk 0:01:17.8]} 23... Bb5 {[%clk 0:02:19.5]}
24. Bxb5+ {[%clk 0:01:11.9]} 24... Qxb5 {[%clk 0:02:19.6]} 25. Rf2 {[%clk
0:01:12.3]} 25... Kd7 {[%clk 0:02:11.7]} 26. h5 {[%clk 0:01:09.6]} 26... Qa6
{[%clk 0:01:59.9]} 27. Qh3 {[%clk 0:01:06.6]} 27... h6 {[%clk 0:01:39.4]} 28.
Nxf7 {[%clk 0:00:39.6]} 28... Nxf7 {[%clk 0:01:39.2]} 29. hxg6 {[%clk 0:00:40]}
29... Nd8 {[%clk 0:01:39.4]} 30. g7 {[%clk 0:00:40.6]} 30... Rg8 {[%clk
0:01:37.1]} 31. Qxh6 {[%clk 0:00:40.7]} 31... Qa8 {[%clk 0:01:31.8]} 32. Qh7
{[%clk 0:00:32.1]} 32... Nc6 {[%clk 0:01:27.6]} 33. f5 {[%clk 0:00:32.1]} 33...
exf5 {[%clk 0:01:27.6]} 34. Rxf5 {[%clk 0:00:24.4]} 34... Rxc2 {[%clk
0:01:12.9]} 35. e6+ {[%clk 0:00:24.7]} 35... Kc7 {[%clk 0:01:12.3]} 36. Rxd5
{[%clk 0:00:25]} 36... Rxg2 {[%clk 0:01:06.8]} 37. Rd7+ {[%clk 0:00:21.8]} 37...
Kc8 {[%clk 0:00:59.8]} 38. Qxg8+ {[%clk 0:00:17.7]} 38... Nd8 {[%clk 0:00:59.8]}
39. d5 {[%clk 0:00:18.2]} 39... Qa2 {[%clk 0:00:59.8]} 40. Bf4 {[%clk
0:00:15.2]} 40... Qf2 {[%clk 0:00:48.4]} 41. Rc7+ {[%clk 0:00:15.1]} 41... Kb8
{[%clk 0:00:48.6]} 42. Rxe7+ {[%clk 0:00:15.4]} 42... Qxf4 {[%clk 0:00:46.5]}
43. Qxd8# {[%clk 0:00:15.5]} 1-0

[Event "*** SCC Grand Prix: Titled Tuesday Blitz"]
[Site "Chess.com"]
[Date "2020.06.09"]
[Round "8"]
[White "guillembaches"]
[Black "Jadeit90"]
[Result "1-0"]
[WhiteElo "2487"]
[BlackElo "2313"]
[TimeControl "180+1"]
[EndTime "10:35:07 PDT"]
[Termination "guillembaches won by resignation"]

1. e4 {[%clk 0:03:00.9]} 1... g6 {[%clk 0:02:42.6]} 2. d4 {[%clk 0:03:00.2]}
2... Bg7 {[%clk 0:02:42.6]} 3. Be3 {[%clk 0:03:00.3]} 3... c5 {[%clk 0:02:42.9]}
4. Ne2 {[%clk 0:03:00]} 4... cxd4 {[%clk 0:02:43.4]} 5. Nxd4 {[%clk 0:03:00.1]}
5... Nf6 {[%clk 0:02:43.8]} 6. Nc3 {[%clk 0:02:58.7]} 6... O-O {[%clk
0:02:43.9]} 7. Bc4 {[%clk 0:02:57.3]} 7... Nc6 {[%clk 0:02:44.2]} 8. Bb3 {[%clk
0:02:56.6]} 8... Ng4 {[%clk 0:02:43.9]} 9. Qxg4 {[%clk 0:02:52.9]} 9... Nxd4
{[%clk 0:02:43.9]} 10. Qd1 {[%clk 0:02:40.8]} 10... Nxb3 {[%clk 0:02:43.6]} 11.
axb3 {[%clk 0:02:40.5]} 11... d6 {[%clk 0:02:44.5]} 12. Bd4 {[%clk 0:02:35.1]}
12... Be6 {[%clk 0:02:41.7]} 13. Bxg7 {[%clk 0:02:33.9]} 13... Kxg7 {[%clk
0:02:42.6]} 14. Qd4+ {[%clk 0:02:32.7]} 14... Kg8 {[%clk 0:02:43]} 15. Rxa7
{[%clk 0:02:29.8]} 15... Rxa7 {[%clk 0:02:42.7]} 16. Qxa7 {[%clk 0:02:29.8]}
16... Qc8 {[%clk 0:02:43.2]} 17. O-O {[%clk 0:02:26.1]} 17... b5 {[%clk
0:02:42.6]} 18. Qxe7 {[%clk 0:02:18.4]} 18... b4 {[%clk 0:02:42.4]} 19. Nd5
{[%clk 0:02:17.9]} 19... Bxd5 {[%clk 0:02:42.7]} 20. exd5 {[%clk 0:02:18.8]}
20... Qxc2 {[%clk 0:02:43]} 21. Qxd6 {[%clk 0:02:15.3]} 21... Qxb3 {[%clk
0:02:43.1]} 22. Qb6 {[%clk 0:02:06]} 22... Qxd5 {[%clk 0:02:42.1]} 23. Qxb4
{[%clk 0:02:05.3]} 23... Re8 {[%clk 0:02:40.7]} 24. Re1 {[%clk 0:02:00.7]} 24...
Rxe1+ {[%clk 0:02:37.7]} 25. Qxe1 {[%clk 0:02:01.6]} 25... Qb3 {[%clk
0:02:37.8]} 26. Qe8+ {[%clk 0:01:57.9]} 26... Kg7 {[%clk 0:02:37.3]} 27. Qe5+
{[%clk 0:01:57.2]} 27... Kg8 {[%clk 0:02:37.3]} 28. h4 {[%clk 0:01:52.8]} 28...
h5 {[%clk 0:02:35.2]} 29. g3 {[%clk 0:01:49.4]} 29... Qd1+ {[%clk 0:02:33.4]}
30. Kg2 {[%clk 0:01:47]} 30... Qb3 {[%clk 0:02:32.9]} 31. Qc3 {[%clk 0:01:44.5]}
31... Qd5+ {[%clk 0:02:33]} 32. Qf3 {[%clk 0:01:44.4]} 32... Qb5 {[%clk
0:02:27.7]} 33. b3 {[%clk 0:01:39.8]} 33... Qb4 {[%clk 0:02:27.9]} 34. Qd5
{[%clk 0:01:34.9]} 34... Kg7 {[%clk 0:02:23.5]} 35. Qc4 {[%clk 0:01:33.8]} 35...
Qb7+ {[%clk 0:02:23.4]} 36. Kf1 {[%clk 0:01:32.1]} 36... Qh1+ {[%clk 0:02:22.4]}
37. Ke2 {[%clk 0:01:32.3]} 37... Qb1 {[%clk 0:02:19]} 38. b4 {[%clk 0:01:28.6]}
38... Qb2+ {[%clk 0:02:19.3]} 39. Kf1 {[%clk 0:01:28.6]} 39... Qb1+ {[%clk
0:02:19.1]} 40. Kg2 {[%clk 0:01:28.5]} 40... Kg8 {[%clk 0:02:17.8]} 41. b5
{[%clk 0:01:26.8]} 41... Kg7 {[%clk 0:02:18.1]} 42. Qd4+ {[%clk 0:01:24.8]}
42... Kg8 {[%clk 0:02:18.5]} 43. b6 {[%clk 0:01:24.7]} 43... Kh7 {[%clk
0:02:18.4]} 44. Kf3 {[%clk 0:01:20.1]} 44... Qf5+ {[%clk 0:02:16.7]} 45. Ke2
{[%clk 0:01:19.5]} 45... Qc2+ {[%clk 0:02:16.4]} 46. Ke1 {[%clk 0:01:19.2]}
46... Qb1+ {[%clk 0:02:16.5]} 47. Kd2 {[%clk 0:01:18.8]} 47... Qb5 {[%clk
0:02:11.3]} 48. Kc3 {[%clk 0:01:13]} 48... Qb1 {[%clk 0:02:06.7]} 49. Kc4 {[%clk
0:01:08.5]} 49... Qc2+ {[%clk 0:02:06.8]} 50. Kd5 {[%clk 0:01:08.4]} 50... Qf5+
{[%clk 0:02:06.5]} 51. Kc6 {[%clk 0:01:07.5]} 51... Qe6+ {[%clk 0:02:06.6]} 52.
Kc7 {[%clk 0:01:07.2]} 52... Qe7+ {[%clk 0:02:06.7]} 53. Kb8 {[%clk 0:01:05.6]}
53... Qe8+ {[%clk 0:02:06.2]} 54. Ka7 {[%clk 0:01:05]} 54... Qe7+ {[%clk
0:02:05.5]} 55. b7 {[%clk 0:01:03.7]} 55... Qa3+ {[%clk 0:02:05.4]} 56. Kb8
{[%clk 0:01:02.7]} 56... Qf8+ {[%clk 0:02:05.2]} 57. Kc7 {[%clk 0:01:02.7]}
57... Qe7+ {[%clk 0:02:05.6]} 58. Kb6 {[%clk 0:01:02]} 58... Qe6+ {[%clk
0:02:05.8]} 59. Ka7 {[%clk 0:01:00]} 59... Qa2+ {[%clk 0:02:05.2]} 60. Kb6
{[%clk 0:00:59.9]} 60... Qb3+ {[%clk 0:02:05.2]} 61. Kc7 {[%clk 0:00:57]} 61...
Qc2+ {[%clk 0:02:05.1]} 62. Kd8 {[%clk 0:00:53.4]} 62... Qb3 {[%clk 0:02:04]}
63. Qd7 {[%clk 0:00:47.4]} 63... Kg8 {[%clk 0:02:01.4]} 64. Kc8 {[%clk
0:00:42.9]} 64... Qc4+ {[%clk 0:02:00.2]} 65. Qc7 {[%clk 0:00:43]} 65... Qe6+
{[%clk 0:01:57.8]} 66. Kb8 {[%clk 0:00:42.7]} 66... Kh7 {[%clk 0:01:56]} 67. Ka7
{[%clk 0:00:38.7]} 67... Qa2+ {[%clk 0:01:55.6]} 68. Kb6 {[%clk 0:00:38.9]}
68... Qb3+ {[%clk 0:01:55.9]} 69. Kc6 {[%clk 0:00:38.8]} 69... Qc4+ {[%clk
0:01:56.2]} 70. Kd7 {[%clk 0:00:37.1]} 70... Qd5+ {[%clk 0:01:56.3]} 71. Ke8
{[%clk 0:00:33.9]} 71... Qe6+ {[%clk 0:01:50.5]} 72. Kf8 {[%clk 0:00:31.4]} 1-0